Cogmind - Beta 10.1 @@@ ROGUE MODE // 2020.10.03 @ 11:54:08 Player: Jelly Result: Self-destructed Performance ------------- Evolutions (2) 1000 Regions Visited (4) 800 Robots Destroyed (21) 105 Value Destroyed (628) 628 Prototype IDs (0) 0 Alien Tech Used (0) 0 Bonus (113) 113 TOTAL SCORE: 2646 Bonus ------- Follower Combat Kills 113 Cogmind --------- Core Integrity 498/550 Matter 239/300 Energy 103/250 System Corruption 0% Temperature Cool (3) Movement Hovering (52) Location -8/Materials Parts ------- > --- POWER (1) -------- Ion Engine > --- PROPULSION (3) --- Airjet Airjet Airjet > --- UTILITY (5) ------ Small Storage Unit Advanced Visual Processing Unit Sensor Array Advanced Terrain Scanner Maneuvering Thrusters > --- WEAPON (2) ------- Rocket Launcher Mining Claw > --- INVENTORY (6) ---- Ion Engine Improved Hover Unit Airjet Sensor Array System Shield Shotgun Peak State ------------ > --- POWER ------------ Light Nuclear Core > --- PROPULSION ------- Airjet Airjet Airjet > --- UTILITY ---------- Small Storage Unit Advanced Visual Processing Unit Sensor Array Improved Sensor Array Maneuvering Thrusters > --- WEAPON ----------- Shotgun Mining Claw > --- INVENTORY -------- Light Nuclear Core Improved Hover Unit Airjet Sensor Array Rocket Launcher [Rating: 26] Favorites ----------- Power Ion Engine Engine Ion Engine Power Core Light Nuclear Core Propulsion Wheel Leg Aluminum Leg Wheel Wheel Hover Unit Airjet Utility Small Storage Unit Device Sensor Array Storage Small Storage Unit Processor Advanced Visual Processing Unit Weapon Assault Rifle Ballistic Gun Assault Rifle Launcher Rocket Launcher Slashing Weapon Mining Claw Build | -11 -10 -10 -9 -8 ------- Run | Scr Mat Min Mat Mat Slots Evolved 4 | . . . 2 2 Power . | . . . . . Propulsion 1 | . . . . 1 Utility 3 | . . . 2 1 Weapon . | . . . . . Parts Attached 38 | . 9 7 15 7 Power 4 | . 1 . 1 2 Engine 2 | . 1 . . 1 Core 2 | . . . 1 1 Reactor . | . . . . . Propulsion 9 | . 4 2 2 1 Treads . | . . . . . Leg . | . . . . . Wheel 6 | . 4 2 . . Hover 3 | . . . 2 1 Flight . | . . . . . Utility 14 | . 2 . 9 3 Device 7 | . 1 . 3 3 Storage 5 | . 1 . 4 . Processor 2 | . . . 2 . Hackware . | . . . . . Protection . | . . . . . Artifact . | . . . . . Weapon 11 | . 2 5 3 1 Energy Gun . | . . . . . Energy Cannon . | . . . . . Ballistic Gun 7 | . 2 3 2 . Ballistic Cannon . | . . . . . Launcher 3 | . . 2 . 1 Special Weapon . | . . . . . Impact Weapon . | . . . . . Slashing Weapon 1 | . . . 1 . Piercing Weapon . | . . . . . Special Melee Weapon . | . . . . . Unidentified Prototypes . | . . . . . Parts Lost 7 | . 2 1 . 4 Power 3 | . 1 . . 2 Propulsion 2 | . 1 1 . . Utility 2 | . . . . 2 Weapon . | . . . . . Highest Loss Streak 4 | . 2 1 . 4 Average Slot Usage (%) 93 | . 93 96 92 94 Engine 8 | . 13 14 1 2 Core 3 | . . . 9 4 Wheel 19 | . 26 24 14 . Hover 5 | . . . 7 27 Device 6 | . 1 . 11 23 Storage 20 | . 20 28 17 9 Processor 3 | . . . 8 9 Ballistic Gun 21 | . 28 27 18 4 Slashing Weapon 2 | . . . 3 9 Naked Turns . | . . . . . Heaviest Build 76 | 10 21 21 76 18 Greatest Support 32 | 20 32 26 20 27 Greatest Overweight (x) 3 | . . 1 3 . Average Overweight (x) . | . . . 1 . Largest Inventory Capacity 20 | . 10 10 20 6 Average Capacity 10 | . 7 10 14 6 Most Carried 18 | . 8 10 18 6 Average Carried 8 | . 4 9 11 5 Final Capacity 10 | 6 10 10 6 6 Final Carried 10 | 6 8 10 6 6 Class Distribution -------------------- 76% | Mutant 14% | Scavenger-Mutant 6% | Hauler-Mutant Dominant Class ---------------- Mutant | -10/Materials Mutant | -10/Mines Scavenger-Mutant | -9/Materials Mutant | -8/Materials Resources | -11 -10 -10 -9 -8 ----------- Run | Scr Mat Min Mat Mat Matter Collected 917 | 200 224 182 311 . Remotely . | . . . . . Salvage Created 724 | . 359 152 213 . Parts 48 | . 16 12 20 . Haulers Intercepted 1 | . 1 . . . Recyclers Shooed . | . . . . . Parts Field Recycled . | . . . . . Retrieved Matter . | . . . . . Parts Self-Destructed . | . . . . . Prevented . | . . . . . Kills | -11 -10 -10 -9 -8 ------- Run | Scr Mat Min Mat Mat Combat Hostiles Destroyed 14 | . 5 5 4 . Guns 9 | . 5 . 4 . AOE 5 | . . 5 . . Classes Destroyed 6 | . 4 1 1 . Tunneler 3 | . . 2 1 . Hauler 1 | . 1 . . . Recycler 1 | . 1 . . . Watcher 2 | . 1 . 1 . Grunt 12 | . 5 5 2 . Sentry 2 | . . . 2 . Best Kill Streak 3 | . 3 3 3 . Combat Bots Only 3 | . 2 3 3 . Max Kills in Single Turn 2 | . 1 2 1 . Gunslinging . | . . . . . Exploded 2 | . . 2 . . Melee . | . . . . . Uniques/NPCs Destroyed . | . . . . . Combat | -11 -10 -10 -9 -8 -------- Run | Scr Mat Min Mat Mat Damage Taken 1102 | . 264 393 166 279 Core 252 | . 26 132 42 52 Absorbed by Shields . | . . . . . Core Remaining (%) 75 | 100 . 36 89 . Volleys Fired 71 | . 32 20 18 1 Largest 2 | . 2 2 2 1 Hottest 50 | . 40 50 46 33 Shots Fired 127 | . 64 33 29 1 Gun 117 | . 64 24 29 . Cannon . | . . . . . Launcher 10 | . . 9 . 1 Special . | . . . . . Kinetic 117 | . 64 24 29 . Thermal . | . . . . . Explosive 10 | . . 9 . 1 Electromagnetic . | . . . . . Robot Hit Streak 11 | . 11 7 5 3 Robot Miss Streak 3 | . 3 3 3 . Penetration Max . | . . . . . Secondary Targets 1 | . . . 1 . Max Gunslinging Chain 1 | . . . 1 . Shots Hit Robots 88 | . 41 20 25 2 Core Hits 44 | . 17 12 11 4 Critical Hits 1 | . . 1 . . Critical Kills . | . . . . . Critical Parts Destroyed 1 | . . 1 . . Melee Attacks 14 | . . . 4 10 Impact . | . . . . . Slashing 14 | . . . 4 10 Piercing . | . . . . . Sneak Attacks . | . . . . . Combat Hostiles . | . . . . . Follow-up Attacks . | . . . . . Damage Inflicted 1535 | . 450 647 336 102 Guns 949 | . 450 189 310 . Cannons . | . . . . . Explosions 535 | . . 458 . 77 Melee 51 | . . . 26 25 Ramming . | . . . . . Kinetic 949 | . 450 189 310 . Thermal . | . . . . . Explosive 535 | . . 458 . 77 Electromagnetic . | . . . . . Impact . | . . . . . Slashing 51 | . . . 26 25 Piercing . | . . . . . Highest Corruption 2 | . . . 2 . Average Corruption 2 | . . . 2 . Corruption Purged . | . . . . . Overload Shots . | . . . . . Overflow Damage 21 | . . 21 . . Projectiles . | . . . . . Explosions 21 | . . 21 . . Melee . | . . . . . Knockbacks . | . . . . . Impact . | . . . . . Kinetic . | . . . . . Secondary . | . . . . . Self-Inflicted Damage 12 | . . 12 . . Shots 2 | . . 2 . . Rammed . | . . . . . Targets Rammed . | . . . . . Kicked . | . . . . . Crushed . | . . . . . Highest Temperature 46 | . 13 46 1 11 Average Temperature 13 | . 8 19 1 7 Received Heat Transfer 519 | . 144 225 51 99 Siege Activations . | . . . . . Robots Corrupted . | . . . . . Combat Hostiles . | . . . . . Parts Fried . | . . . . . Impact Corruptions . | . . . . . Robots Melted . | . . . . . Combat Hostiles . | . . . . . Parts Melted . | . . . . . Heat Transferred . | . . . . . Parts Sabotaged . | . . . . . Parts Stolen . | . . . . . Parts Stripped . | . . . . . Power Chain Reactions . | . . . . . Missiles Intercepted . | . . . . . Alert | -11 -10 -10 -9 -8 ------- Run | Scr Mat Min Mat Mat Peak Influence 444 | . 149 313 444 173 Initial 137 | . . 57 45 137 Average 187 | . 81 206 268 149 Maximum Alert Level 2 | . . 1 2 . Low Security (%) 62 | . 100 52 28 100 Level 1 33 | . . 47 58 . Level 2 3 | . . . 12 . Level 3 . | . . . . . Level 4 . | . . . . . Level 5 . | . . . . . High Security . | . . . . . Max Security . | . . . . . Squads Dispatched 4 | . 1 . 3 . Investigation . | . . . . . Extermination . | . . . . . Reinforcement 4 | . 1 . 3 . Assault . | . . . . . Garrison . | . . . . . Intercept . | . . . . . Construction Impeded . | . . . . . Haulers Reinforced . | . . . . . Stealth | -11 -10 -10 -9 -8 --------- Run | Scr Mat Min Mat Mat Distress Signals 4 | . 2 . 1 1 Communications Jammed . | . . . . . Distress Signals . | . . . . . Times Spotted 63 | . 11 11 30 11 Peak Tracking Total 6 | . 3 4 5 6 Tactical Retreats 9 | . 1 3 4 1 Traps | -11 -10 -10 -9 -8 ------- Run | Scr Mat Min Mat Mat Traps Triggered 1 | . . . 1 . Indirectly . | . . . . . Trap Hack Attempts . | . . . . . Triggered . | . . . . . Disarmed . | . . . . . Reprogrammed . | . . . . . Reused . | . . . . . Traps Extracted . | . . . . . Installed . | . . . . . Triggered . | . . . . . Machines | -11 -10 -10 -9 -8 ---------- Run | Scr Mat Min Mat Mat Machines Disabled 3 | . . 3 . . Max in Single Turn 1 | . . 1 . . Machines Sabotaged . | . . . . . Garrisons Compromised . | . . . . . Overloaded Fab Kills . | . . . . . Fab Network Shutdowns . | . . . . . Hacking | -11 -10 -10 -9 -8 --------- Run | Scr Mat Min Mat Mat Machines Accessed 2 | . 1 . . 1 Terminals 2 | . 1 . . 1 Fabricators . | . . . . . Repair Stations . | . . . . . Recycling Units . | . . . . . Scanalyzers . | . . . . . Garrison Access . | . . . . . Total Hacks 7 | . 2 . . 5 Successful 5 | . 1 . . 4 Failed 2 | . 1 . . 1 Catastrophic 2 | . 1 . . 1 Database Lockouts . | . . . . . Manual 7 | . 2 . . 5 Terminals 7 | . 2 . . 5 Fabricators . | . . . . . Repair Stations . | . . . . . Recycling Units . | . . . . . Scanalyzers . | . . . . . Garrison Access . | . . . . . Terminal Hacks 1 | . . . . 1 Zone Layout 1 | . . . . 1 Fabricator Hacks . | . . . . . Repair Station Hacks . | . . . . . Recycling Unit Hacks . | . . . . . Scanalyzer . | . . . . . Garrison Access Hacks . | . . . . . Unauthorized Hacks 4 | . 1 . . 3 Terminals 4 | . 1 . . 3 Track 1 | . . . . 1 Botnet 2 | . 1 . . 1 Operators 1 | . . . . 1 Fabricators . | . . . . . Repair Stations . | . . . . . Recycling Units . | . . . . . Scanalyzers . | . . . . . Garrison Access . | . . . . . Data Cores Recovered . | . . . . . Used . | . . . . . Hacking Detections 2 | . 1 . . 1 Full Trace Events . | . . . . . Feedback Events . | . . . . . Feedback Blocked . | . . . . . Robot Schematics Acquired . | . . . . . Robots Built . | . . . . . Matter . | . . . . . Time . | . . . . . Total Robot Build Rating . | . . . . . Part Schematics Acquired . | . . . . . Parts Built . | . . . . . Matter . | . . . . . Time . | . . . . . Total Part Build Rating . | . . . . . Parts Repaired . | . . . . . Time . | . . . . . Parts Recycled . | . . . . . Recycled Matter . | . . . . . Retrieved Matter . | . . . . . Retrieved Components . | . . . . . Parts Scanalyzed . | . . . . . Part Schematics Acquired . | . . . . . Parts Damaged . | . . . . . Bothacking | -11 -10 -10 -9 -8 ------------ Run | Scr Mat Min Mat Mat Used RIF Installer . | . . . . . Robots Hacked . | . . . . . Non-combat . | . . . . . Combat . | . . . . . Robot Hacks Applied . | . . . . . Relay Couplers Released . | . . . . . Robots Rewired . | . . . . . Allies Hacked . | . . . . . Hacks Repelled . | . . . . . Allies | -11 -10 -10 -9 -8 -------- Run | Scr Mat Min Mat Mat Total Allies 3 | . . 3 . . Largest Group 3 | . . 3 3 . Highest-Rated Group 40 | . . 40 40 . Highest-Rated Ally 16 | . . 16 16 . Total Orders . | . . . . . Ally Attacks 54 | . . 22 32 . Total Damage 514 | . . 205 309 . Kills 13 | . . 3 10 . Allies Corrupted . | . . . . . Allies Melted . | . . . . . Intel | -11 -10 -10 -9 -8 ------- Run | Scr Mat Min Mat Mat Robot Analysis Total . | . . . . . Derelict Logs Recovered 1 | . . 1 . . Drone Launches . | . . . . . Drone Recoveries . | . . . . . Exploration | -11 -10 -10 -9 -8 ------------- Run | Scr Mat Min Mat Mat Turns Passed 1501 | . 393 472 473 163 Spaces Moved 1254 | 1 257 414 405 177 Core . | . . . . . Treads . | . . . . . Legs 9 | 1 8 . . . Wheels 863 | . 249 414 200 . Hover 382 | . . . 205 177 Flight . | . . . . . Fastest Speed 52 | 120 90 90 56 52 Average Speed 85 | 120 98 93 82 52 Slowest Speed 180 | 120 120 110 180 52 Overloaded Moves . | . . . . . Propulsion Burnouts . | . . . . . Robots Hopped . | . . . . . Cave-ins Triggered . | . . . . . Exploration Rate (%) 38 | 1 41 86 37 26 Regions Visited 4 Branch Regions 1 Pre-discovered Areas 1 | . . 1 . . Known Exits Taken . | . . . . . Unknown Exits Taken 4 | 1 1 1 1 . Scrap Searched 2 | . . 2 . . Spaces Dug 9 | . . . 2 7 Terrain Destroyed 68 | . . 47 2 19 Melee 9 | . . . 2 7 Projectile . | . . . . . AOE 59 | . . 47 . 12 Terrain Rammed . | . . . . . Walls Destroyed . | . . . . . Machines Disabled . | . . . . . Actions | -11 -10 -10 -9 -8 --------- Run | Scr Mat Min Mat Mat Total 1544 | . 341 465 514 224 Wait 94 | . 23 11 33 27 Move 1250 | . 256 413 404 177 Hop . | . . . . . Pick Up 32 | . 10 8 12 2 Fast Attach 16 | . 1 1 10 4 Attach 11 | . 5 1 3 2 Detach 10 | . 3 . 7 . Swap 11 | . 3 5 2 1 Drop 35 | . 8 6 21 . Fire 71 | . 32 20 18 1 Melee 14 | . . . 4 10 Ram . | . . . . . Kick . | . . . . . Crush . | . . . . . Escape Stasis . | . . . . . Rewire . | . . . . . Trap . | . . . . . Miscellaneous . | . . . . . Route ------- -11/Scrapyard -10/Materials -10/Mines (discovered 2 exits: [*Mat x2]) -9/Materials -8/Materials (discovered 1 exit: [*Fac]) History --------- Turn | Location | Event 1 | -11/Scrapyard | Discovered new exit (range 0) 1 | -11/Scrapyard | Entered Materials 315 | -10/Materials | Discovered new exit (range 11) 316 | -10/Materials | Build established: Mutant 394 | -10/Materials | Entered Mines 415 | -10/Mines | Core integrity fell below 50% 476 | -10/Mines | Assisted by bots powering up and referring to "LRC-V3" 543 | -10/Mines | Discovered new exit (range 12) 571 | -10/Mines | Discovered new exit (range 14) 690 | -10/Mines | Learned location of Zion (-6) 694 | -10/Mines | Received a Rocket Launcher from a helpful Derelict 866 | -10/Mines | Entered Materials 866 | -9/Materials | Accompanied by 3 allies 866 | -9/Materials | Evolved 2 slots: Utility x2 1329 | -9/Materials | Discovered new exit (range 18) 1339 | -9/Materials | Entered another Materials area 1339 | -8/Materials | Evolved 2 slots: Propulsion x1, Utility x1 1460 | -8/Materials | Lost 4 parts (2p2u) 1500 | -8/Materials | Discovered new exit (range 15) 1502 | -8/Materials | Self-destructed Last Messages --------------- 01465_ T-07 Excavator is excavating. 01468_ Connecting with Terminal... 01468_ Current location identified: Materials >>Trojan(Botnet) Trojan loaded successfully. Testing... Terminal linked with 0 systems. Awaiting botnet instructions. >>Trojan(Operators) Trojan loaded successfully. Testing... Operator tracking enabled and active. >>Trojan(Track) Trojan loaded successfully. Testing... Tracking enabled and active. >>Layout(Zone) Retrieving Zone 3E layout... Downloaded map data. 01500_ EXIT=FOUND Map ----- +----------------------------------------------------+ | ??#! #???# # #????? | | ??#! #???# # #????? | | ??#! """ #???# # ###### | | ??#! """ #######+#### ## | | ??##!! """a #??######"# | | ??##### #???????##" | | ????### #??#?????## | | ????# #?????????# | | ????# ! #?????????# = | | ????# !! "T" #?????????# | | ????# Y #?????????# | | ????# Y #?????????# | | ????### ##########+########## #?????????##### | | ??#### ####???# #???# #?#???????????? | | ??###########???# #???# #?????????????? | | ??###########???# #???# #?????????????? | | ??###########???# #???# #?????????????? | | ??###########???# #???#t#?????????????? | | ??#???#??######## #?#######???????????? | | ????????# ##! #?#######???????????? | | ??#?????# ## #?#######???????????? | | ??####### """ ## #?#######???????????? | | ?? # """ ## #?????????????#?????? | | ?? """ # """ ## #########???????????? | | ??""""" # ######+###########????#??????? | | ??????????????????# @ #???????????????????? | | ???????????????ss #???????????????????? | | ??????????? s Y t?????????????????? | | ????????# # #????#???????????? | | ????????###+## ## ####????????????????? | | ?????????????# ?## ##???????????????????? | | ?????????????+ ???# #????????????????????? | | ?????????????# ????# #????????????????????? | | ?????????????#?????# #????????????????????? | | ??????????????##?#?# #?#??????????????????? | | ???????????????????# #????????????????????? | | ???????????????????# #????????????????????? | | ???????????????????# #????????????????????? | | ???????????????????# < #????????????????????? | | ???????????????????# #????????????????????? | | ????????????????o???####????????????????????? | | ????????????????????????????????????????????? | | ????????????????????????????????????????????? | | ????????????????????????????????????????????? | | ????????????????????????????????????????????? | | ????????????????????????????????????????????? | | | | | | | | | +----------------------------------------------------+ Best States ------------- Heat Dissipation 31 Energy Generation 14 Energy Capacity 250 Matter Stores 300 Matter Capacity 300 Sight Range 20 Robot Scan Range 13 Terrain Scan Range 20 Terrain Scan Density 60 Evasion (%) 60 Item Schematics ----------------- None Robot Schematics ------------------ None Fabricated ------------ Nothing Alien Tech Used ----------------- None Achievements -------------- None Challenges ------------ None Game ------ Seed SpectralWaveDetonator Manual? 0 Play Time 00:29:28 Cumulative 19.7 hours Start 2020.10.03 @ 11:18:27 End 2020.10.03 @ 11:54:08 Sessions 1 Manual Loads 0 Difficulty Rogue Special Mode None Game No. 29 Rogue 29 Adventurer 0 Explorer 0 Win Type - Total 0 Types 0/0/0/0/0/0/0/0/0 Lore% 20 Gallery% 23 Achievement% 19 Wizard Run 0 Options --------- ASCII 0 Keyboard 1 Movement Numpad Keybinds 0 Fullscreen 1 Font 18/SmallcapsGlow Map View 76x50 Tactical HUD 1 Map Filters NONE Filters NONE Steam 1 RUN: 54733ebb-e402-40cf-9626-bb9cfeb8dbd0